fUST/lending_fUST_20250731
["ID","MTS","AMOUNT","RATE_DAILY","PERIOD"]
[376308645,1753925447826,-151.0,0.00021969,7]
[376308647,1753925447835,-257.980292,0.00021969,7]
[376308649,1753925447844,-257.980292,0.00021969,7]
[376308651,1753925447853,-574.920082,0.00021969,7]
[376308653,1753925447862,-574.920082,0.00021969,7]
[376308655,1753925447871,-1189.483359,0.00021969,7]
[376308657,1753925447881,-1189.483359,0.00021969,7]
[376308659,1753925447890,-572.81,0.00021969,2]
[376308661,1753925447899,-927.59,0.0002197,2]
[376308663,1753925447909,-1256.33,0.0002197,2]
[376308666,1753925447918,-460.0,0.0002197,2]
[376308668,1753925447928,-2451.93,0.00021971,2]
[376308670,1753925447937,-675.78,0.00021972,2]
[376308672,1753925447947,-151.0,0.00021973,7]
[376308674,1753925447956,-151.0,0.00021973,7]
[376308676,1753925447966,-151.0,0.00021973,7]
[376308678,1753925447975,-151.0,0.00021973,7]
[376308680,1753925447984,-213.641832,0.00021973,7]
[376308682,1753925447993,-159.734696,0.00021973,7]
[376308684,1753925448003,-357.460275,0.00021973,7]
[376308686,1753925448012,-357.460275,0.00021973,7]
[376308688,1753925448021,-2000.0,0.0002198,2]
[376308690,1753925448030,-151.0,0.0002198,7]
[376308692,1753925448039,-151.0,0.0002198,7]
[376308694,1753925448048,-160.0,0.00021981,2]
[376308696,1753925448056,-160.0,0.00021981,2]
[376308698,1753925448064,-841.2246943,0.00021981,2]
[376308700,1753925448074,-216.14611358,0.00021981,2]
[376308702,1753925448084,-160.0,0.00021981,2]
[376308704,1753925448092,-12639.5777639,0.00021981,2]
[376308706,1753925448103,-5983.49,0.00022,7]
[376308708,1753925448112,-24543.98,0.00022,7]
[376308710,1753925448122,-2170.51,0.00022,7]
[376308712,1753925448131,-274.004304,0.00022,7]
[376308714,1753925448140,-151.0,0.00022,7]
[376308716,1753925448150,-151.0,0.00022,7]
[376308728,1753925448248,-286.501484,0.00022,7]
[376308730,1753925448258,-151.0,0.00022,7]
[376308732,1753925448268,-430.48,0.00022,2]
[376308734,1753925448277,-166.0,0.00022,2]
[376308736,1753925448287,-874.411612,0.00022,7]
[376308738,1753925448296,-874.411612,0.00022,7]
[376308740,1753925448306,-302.48996223,0.00022,3]
[376308742,1753925448315,-551.7021859,0.00022,2]
[376308744,1753925448325,-160.0,0.00022002,2]
[376308746,1753925448334,-460.59675358,0.00022002,2]
[376308748,1753925448343,-290.155106,0.00022006,7]
[376308750,1753925448352,-290.155106,0.00022006,7]
[376308752,1753925448362,-188.466427,0.00022006,7]
[376308754,1753925448371,-188.466427,0.00022006,7]
[376308756,1753925448381,-151.0,0.00022006,7]
[376308758,1753925448389,-151.0,0.00022006,7]
[376308760,1753925448399,-151.0,0.00022006,7]
[376308762,1753925448408,-1138.32146,0.00022006,7]
[376308764,1753925448416,-1138.32146,0.00022006,7]
[376308766,1753925448425,-285.444168,0.00022006,7]
[376308768,1753925448434,-285.444168,0.00022006,7]
[376308770,1753925448443,-177.264006,0.00022006,7]
[376308772,1753925448452,-177.264006,0.00022006,7]
[376308774,1753925448461,-375.276282,0.00022006,7]
[376308776,1753925448470,-375.276282,0.00022006,7]
[376308778,1753925448479,-151.0,0.00022006,7]
[376308780,1753925448488,-151.0,0.00022006,7]
[376308782,1753925448497,-151.0,0.00022006,7]
[376308784,1753925448506,-160.0,0.00022099,5]
[376308786,1753925448515,-151.0,0.000221,9]
[376308788,1753925448524,-325.0,0.00022112,2]
[376308790,1753925448533,-153.0,0.00022164,2]
[376308792,1753925448542,-1000.0,0.00022171,2]
[376308794,1753925448551,-500.0,0.00022171,2]
[376308796,1753925448560,-1000.0,0.00022171,2]
[376308798,1753925448570,-1000.0,0.00022171,2]
[376308800,1753925448579,-500.0,0.00022171,2]
[376308802,1753925448588,-436.0,0.00022192,2]
[376308804,1753925448597,-151.0,0.00022192,7]
[376308806,1753925448606,-151.0,0.00022192,7]
[376308808,1753925448616,-342.59219,0.00022192,7]
[376308810,1753925448625,-151.0,0.000222,8]
[376308812,1753925448634,-1462.23,0.00022241,2]
[376308814,1753925448643,-151.420775,0.00022242,7]
[376308816,1753925448652,-220.408828,0.00022242,7]
[376308818,1753925448661,-151.0,0.00022242,7]
[376308820,1753925448670,-151.0,0.00022242,7]
[376308822,1753925448679,-151.0,0.00022242,7]
[376308824,1753925448688,-658.466365,0.00022242,7]
[376308826,1753925448698,-658.466365,0.00022242,7]
[376308828,1753925448707,-971.69,0.00022242,2]
[376308830,1753925448716,-460.0,0.00022242,2]
[376308832,1753925448726,-585.12,0.00022242,2]
[376308833,1753925448735,-460.0,0.00022242,2]
[376308836,1753925448745,-460.0,0.00022242,2]
[376308837,1753925448755,-2247.88,0.00022243,2]
[376308839,1753925448765,-977.17,0.00022243,2]
[376308842,1753925448774,-572.81,0.00022243,2]
[376308844,1753925448784,-151.0,0.00022244,7]
[376308846,1753925448794,-165.0563,0.00022244,7]
[376308848,1753925448803,-165.0563,0.00022244,7]
[376308850,1753925448812,-151.0,0.00022244,7]
[376308852,1753925448821,-312.56084,0.00022244,7]
[376308854,1753925448831,-312.56084,0.00022244,7]
[376308855,1753925448840,-927.59,0.00022244,2]
[376308858,1753925448850,-1256.33,0.00022244,2]
[376308860,1753925448859,-460.0,0.00022244,2]
[376308862,1753925448869,-2451.93,0.00022245,2]
[376308864,1753925448878,-675.78,0.00022246,2]
[376308866,1753925448888,-486.641646,0.00022246,7]
[376308868,1753925448898,-486.641646,0.00022246,7]
[376308869,1753925448907,-151.0,0.00022247,7]
[376308872,1753925448917,-560.0,0.00022268,2]
[376308874,1753925448926,-153.950909,0.00022274,10]
[376308876,1753925448936,-151.0,0.00022299,7]
[376308877,1753925448945,-151.0,0.00022299,7]
[376308880,1753925448954,-151.0,0.000223,7]
[376308882,1753925448964,-151.0,0.000223,5]
[376308884,1753925448973,-151.0,0.000223,7]
[376308886,1753925448982,-151.0,0.000223,7]
[376308888,1753925448991,-151.0,0.000223,7]
[376308890,1753925449001,-151.0,0.000223,7]
[376308892,1753925449010,-290.155106,0.000223,7]
[376308894,1753925449019,-290.155106,0.000223,7]
[376308896,1753925449028,-357.460275,0.000223,7]
[376308898,1753925449037,-357.460275,0.000223,7]
[376308900,1753925449046,-151.0,0.000223,7]
[376308902,1753925449055,-257.980292,0.000223,7]
[376308904,1753925449065,-257.980292,0.000223,7]
[376308906,1753925449073,-574.920082,0.000223,7]
[376308908,1753925449085,-574.920082,0.000223,7]
[376308910,1753925449094,-460.59675358,0.000223,3]
[376308912,1753925449103,-1189.483359,0.000223,7]
[376308914,1753925449112,-1189.483359,0.000223,7]
[376308916,1753925449121,-12639.5777639,0.000223,3]
[376308918,1753925449132,-160.0,0.000223,3]
[376308920,1753925449141,-467.0,0.00022303,2]
[376308922,1753925449151,-916.382279,0.0002231,2]
[376308924,1753925449160,-151.0,0.00022339,7]
[376308926,1753925449169,-151.0,0.00022339,7]
[376308928,1753925449178,-874.411612,0.00022339,7]
[376308930,1753925449187,-874.411612,0.00022339,7]
[376308932,1753925449196,-151.0,0.00022353,7]
[376308934,1753925449205,-151.0,0.00022353,7]
[376308936,1753925449214,-151.0,0.00022353,7]
[376308938,1753925449223,-188.466427,0.00022353,7]
[376308940,1753925449234,-188.466427,0.00022353,7]
[376308942,1753925449245,-151.775212,0.00022353,7]
[376308944,1753925449254,-500.0,0.00022373,2]
[376308946,1753925449264,-500.0,0.00022373,2]
[376308948,1753925449274,-500.0,0.00022373,2]
[376308950,1753925449283,-500.0,0.00022373,2]
[376308952,1753925449292,-500.0,0.00022373,2]
[376308954,1753925449301,-528.50532864,0.00022373,2]
[376308956,1753925449310,-500.0,0.00022373,2]
[376308958,1753925449319,-500.0,0.00022373,2]
[376308960,1753925449328,-183.60100721,0.00022373,2]
[376308962,1753925449338,-523.69418917,0.00022373,2]
[376308964,1753925449347,-500.35759823,0.00022373,2]
[376308966,1753925449356,-158.44706916,0.00022373,2]
[376308968,1753925449366,-500.0,0.00022373,2]
[376308970,1753925449375,-500.0,0.00022373,2]
[376308972,1753925449384,-500.0,0.00022373,2]
[376308974,1753925449393,-500.0,0.00022373,2]
[376308976,1753925449403,-504.78422189,0.00022373,2]
[376308978,1753925449412,-500.0,0.00022373,2]
[376308980,1753925449422,-500.0,0.00022373,2]
[376308982,1753925449431,-502.04095239,0.00022373,2]
[376308984,1753925449441,-500.0,0.00022373,2]
[376308986,1753925449450,-500.0,0.00022373,2]
[376308988,1753925449459,-500.0,0.00022373,2]
[376308990,1753925449468,-500.0,0.00022373,2]
[376308992,1753925449477,-501.47272287,0.00022373,2]
[376308994,1753925449488,-500.0,0.00022373,2]
[376308996,1753925449497,-500.0,0.00022373,2]
[376308998,1753925449508,-501.23894853,0.00022373,2]
[376309000,1753925449518,-500.0,0.00022373,2]
[376309002,1753925449528,-496.94036578,0.00022373,2]
[376309004,1753925449537,-500.0,0.00022373,2]
[376309006,1753925449548,-500.0,0.00022373,2]
[376309009,1753925449558,-500.0,0.00022373,2]
[376309011,1753925449567,-500.0,0.00022373,2]
[376309012,1753925449576,-500.0,0.00022373,2]
[376309014,1753925449585,-500.0,0.00022373,2]
[376309016,1753925449596,-500.0,0.00022373,2]
[376309019,1753925449606,-500.0,0.00022373,2]
[376309021,1753925449618,-500.0,0.00022373,2]
[376309022,1753925449628,-216.28193984,0.00022373,2]
[376309025,1753925449638,-500.0,0.00022373,2]
[376309027,1753925449647,-500.0,0.00022373,2]
[376309029,1753925449656,-500.0,0.00022373,2]
[376309031,1753925449665,-500.0,0.00022373,2]
[376309032,1753925449674,-500.0,0.00022373,2]
[376309034,1753925449683,-500.0,0.00022373,2]
[376309036,1753925449692,-500.0,0.00022373,2]
[376309038,1753925449701,-502.49019685,0.00022373,2]
[376309040,1753925449710,-151.0,0.00022373,7]
[376309042,1753925449719,-151.0,0.00022373,7]
[376309044,1753925449728,-151.0,0.00022373,7]
[376309047,1753925449737,-867.313498,0.00022373,7]
[376309049,1753925449746,-151.0,0.00022373,7]
[376309050,1753925449756,-1138.32146,0.00022373,7]
[376309052,1753925449764,-1138.32146,0.00022373,7]
[376309055,1753925449774,-285.444168,0.00022373,7]
[376309057,1753925449787,-285.444168,0.00022373,7]
[376309059,1753925449796,-177.264006,0.00022373,7]
[376309061,1753925449805,-177.264006,0.00022373,7]
[376309063,1753925449815,-375.276282,0.00022373,7]
[376309065,1753925449824,-375.276282,0.00022373,7]
[376309067,1753925449834,-151.0,0.00022373,7]
[376309069,1753925449843,-151.0,0.00022373,7]
[376309071,1753925449853,-151.0,0.00022373,7]
[376309073,1753925449862,-151.0,0.00022399,7]
[376309075,1753925449872,-151.0,0.00022399,7]
[376309077,1753925449881,-219.084145,0.00022399,7]
[376309079,1753925449891,-219.084145,0.00022399,7]
[376309081,1753925449902,-151.0,0.00022399,7]
[376309083,1753925449911,-203.627184,0.00022399,7]
[376309085,1753925449920,-151.0,0.00022399,7]
[376309087,1753925449930,-257.980292,0.00022399,7]
[376309089,1753925449939,-257.980292,0.00022399,7]
[376309091,1753925449949,-574.920082,0.00022399,7]
[376309093,1753925449958,-574.920082,0.00022399,7]
[376309096,1753925449969,-312.56084,0.00022399,7]
[376309098,1753925449979,-312.56084,0.00022399,7]
[376309100,1753925449992,-1189.483359,0.00022399,7]
[376309102,1753925450001,-1189.483359,0.00022399,7]
[376309104,1753925450011,-1076.23996956,0.00022399,2]
[376309106,1753925450020,-1076.23996956,0.00022399,2]
[376309108,1753925450029,-500.0,0.00022399,2]
[376309110,1753925450039,-1076.23996956,0.00022399,2]
[376309112,1753925450048,-1076.23996956,0.00022399,2]
[376309114,1753925450057,-1076.23996956,0.00022399,2]
[376309116,1753925450067,-1076.23996956,0.00022399,2]
[376309118,1753925450076,-500.0,0.00022399,2]
[376309120,1753925450086,-1076.23996956,0.00022399,2]
[376309122,1753925450095,-448.39689597,0.00022399,2]
[376309124,1753925450104,-1076.23996956,0.00022399,2]
[376309126,1753925450113,-1076.23996956,0.00022399,2]
[376309128,1753925450121,-1076.23996956,0.00022399,2]
[376309130,1753925450131,-1076.23996956,0.00022399,2]
[376309132,1753925450141,-1076.23996956,0.00022399,2]
[376309134,1753925450152,-1076.23996956,0.00022399,2]
[376309136,1753925450161,-1076.23996956,0.00022399,2]
[376309138,1753925450170,-1076.23996956,0.00022399,2]
[376309140,1753925450179,-1076.23996956,0.00022399,2]
[376309142,1753925450189,-1076.23996956,0.00022399,2]
[376309144,1753925450198,-1076.23996956,0.00022399,2]
[376309146,1753925450208,-1076.23996956,0.00022399,2]
[376309148,1753925450218,-1076.23996956,0.00022399,2]
[376309150,1753925450227,-1347.39255624,0.00022399,2]
[376309152,1753925450242,-1347.39255624,0.00022399,2]
[376309154,1753925450252,-1347.39255624,0.00022399,2]
[376309157,1753925450262,-1347.39255624,0.00022399,2]
[376309159,1753925450271,-1347.39255624,0.00022399,2]
[376309171,1753925450374,-1347.39255624,0.00022399,2]
[376309173,1753925450384,-1347.39255624,0.00022399,2]
[376309175,1753925450393,-1347.39255624,0.00022399,2]
[376309177,1753925450403,-151.0,0.000224,7]
[376309179,1753925450413,-151.0,0.000224,7]
[376309181,1753925450422,-85954.42,0.000224,2]
[376309183,1753925450431,-3000.0,0.000224,2]
[376309185,1753925450441,-151.0,0.000224,7]
[376309187,1753925450451,-289.018842,0.000224,7]
[376309189,1753925450460,-289.018842,0.000224,7]
[376309191,1753925450470,-151.0,0.000224,7]
[376309193,1753925450479,-151.0,0.000224,7]
[376309195,1753925450489,-151.0,0.000224,7]
[376309197,1753925450498,-151.0,0.000224,7]
[376309199,1753925450507,-151.0,0.000224,7]
[376309201,1753925450516,-151.0,0.000224,7]
[376309203,1753925450525,-151.0,0.000224,7]
[376309205,1753925450535,-151.0,0.000224,7]
[376309208,1753925450545,-151.0,0.000224,7]
[376309210,1753925450555,-151.0,0.000224,7]
[376309212,1753925450565,-151.0,0.000224,7]
[376309214,1753925450574,-151.731627,0.000224,7]
[376309216,1753925450583,-151.0,0.000224,7]
[376309217,1753925450592,-151.0,0.000224,7]
[376309218,1753925450601,-151.0,0.000224,7]
[376309219,1753925450610,-151.0,0.000224,7]
[376309220,1753925450619,-151.0,0.000224,7]
[376309221,1753925450628,-173.358136,0.000224,7]
[376309222,1753925450638,-219.084145,0.000224,7]
[376309223,1753925450647,-219.084145,0.000224,7]
[376309224,1753925450657,-219.084145,0.000224,7]
[376309225,1753925450666,-219.084145,0.000224,7]
[376309226,1753925450675,-151.0,0.000224,7]
[376309227,1753925450684,-151.0,0.000224,7]
[376309228,1753925450693,-151.0,0.000224,7]
[376309229,1753925450703,-151.0,0.000224,7]
[376309230,1753925450712,-151.0,0.000224,7]
[376309231,1753925450721,-151.0,0.000224,7]
[376309232,1753925450730,-658.466365,0.000224,7]
[376309233,1753925450739,-658.466365,0.000224,7]
[376309234,1753925450748,-658.466365,0.000224,7]
[376309235,1753925450758,-658.466365,0.000224,7]
[376309236,1753925450768,-224.796264,0.000224,7]
[376309237,1753925450777,-151.0,0.000224,7]
[376309238,1753925450787,-151.0,0.000224,7]
[376309239,1753925450796,-151.0,0.000224,7]
[376309240,1753925450805,-151.0,0.000224,7]
[376309241,1753925450815,-151.0,0.000224,7]
[376309242,1753925450824,-151.0,0.000224,7]
[376309243,1753925450833,-151.0,0.000224,7]
[376309244,1753925450842,-290.155106,0.000224,7]
[376309245,1753925450852,-290.155106,0.000224,7]
[376309246,1753925450861,-165.0563,0.000224,7]
[376309248,1753925450871,-165.0563,0.000224,7]
[376309249,1753925450881,-165.0563,0.000224,7]
[376309250,1753925450891,-165.0563,0.000224,7]
[376309251,1753925450900,-188.466427,0.000224,7]
[376309252,1753925450910,-188.466427,0.000224,7]
[376309253,1753925450919,-357.460275,0.000224,7]
[376309254,1753925450929,-357.460275,0.000224,7]
[376309255,1753925450939,-151.0,0.000224,7]
[376309256,1753925450948,-867.313498,0.000224,7]
[376309257,1753925450958,-151.0,0.000224,7]
[376309258,1753925450967,-1138.32146,0.000224,7]
[376309259,1753925450977,-1138.32146,0.000224,7]
[376309260,1753925450986,-285.444168,0.000224,7]
[376309261,1753925450995,-285.444168,0.000224,7]
[376309262,1753925451004,-177.264006,0.000224,7]
[376309263,1753925451014,-177.264006,0.000224,7]
[376309264,1753925451023,-375.276282,0.000224,7]
[376309265,1753925451031,-375.276282,0.000224,7]
[376309266,1753925451041,-151.0,0.000224,7]
[376309267,1753925451051,-151.0,0.000224,7]
[376309268,1753925451060,-151.0,0.000224,7]
[376309269,1753925451069,-151.0,0.000224,7]
[376309270,1753925451078,-151.0,0.000224,7]
[376309271,1753925451087,-151.0,0.000224,7]
[376309272,1753925451096,-342.59219,0.000224,7]
[376309273,1753925451113,-342.59219,0.000224,7]
[376309274,1753925451125,-151.0,0.000224,7]
[376309275,1753925451135,-257.980292,0.000224,7]
[376309276,1753925451144,-257.980292,0.000224,7]
[376309277,1753925451154,-574.920082,0.000224,7]
[376309278,1753925451164,-574.920082,0.000224,7]
[376309279,1753925451173,-151.0,0.000224,7]
[376309280,1753925451183,-312.56084,0.000224,7]
[376309281,1753925451193,-312.56084,0.000224,7]
[376309282,1753925451202,-1189.483359,0.000224,7]
[376309283,1753925451212,-1189.483359,0.000224,7]
[376309284,1753925451221,-151.0,0.000224,7]
[376309285,1753925451231,-486.641646,0.000224,7]
[376309286,1753925451240,-486.641646,0.000224,7]
[376309287,1753925451249,-486.641646,0.000224,7]
[376309288,1753925451259,-486.641646,0.000224,7]
[376309289,1753925451269,-151.0,0.000224,7]
[376309290,1753925451279,-874.411612,0.000224,7]
[376309291,1753925451288,-874.411612,0.000224,7]
[376309292,1753925451297,-3000.0,0.0002241,2]
[376309293,1753925451307,-3000.0,0.0002242,2]
[376309294,1753925451316,-3000.0,0.0002243,2]
[376309295,1753925451325,-3000.0,0.0002244,2]
[376309296,1753925451335,-160.0,0.00022449,6]
[376309297,1753925451345,-203.15299027,0.00022449,5]
[376309298,1753925451354,-3000.0,0.0002245,2]
[376309299,1753925451364,-3000.0,0.0002246,2]
[376309300,1753925451374,-1254.0,0.00022463,2]
[376309301,1753925451383,-436.0,0.00022466,2]
[376309302,1753925451393,-3000.0,0.0002247,2]
[376309303,1753925451403,-467.0,0.00022474,2]
[376309304,1753925451413,-3000.0,0.0002248,2]
[376309305,1753925451422,-3000.0,0.0002249,2]
[376309306,1753925451431,-649662.71118024,0.0002249,7]
[376309307,1753925451441,-151.978491,0.000225,7]
[376309308,1753925451450,-151.0,0.000225,7]
[376309309,1753925451460,-151.0,0.000225,7]
[376309310,1753925451470,-151.0,0.000225,7]
[376309311,1753925451479,-151.0,0.000225,7]
[376309312,1753925451488,-3000.0,0.000225,2]
[376309313,1753925451497,-151.0,0.000225,7]
[376309314,1753925451507,-151.0,0.000225,7]
[376309315,1753925451516,-151.0,0.000225,8]
[376309316,1753925451526,-290.155106,0.000225,7]
[376309317,1753925451535,-290.155106,0.000225,7]
[376309318,1753925451544,-188.466427,0.000225,7]
[376309319,1753925451553,-188.466427,0.000225,7]
[376309320,1753925451563,-182.412248,0.000225,7]
[376309321,1753925451573,-867.313498,0.000225,7]
[376309322,1753925451582,-151.0,0.000225,7]
[376309323,1753925451591,-1138.32146,0.000225,7]
[376309324,1753925451600,-1138.32146,0.000225,7]
[376309325,1753925451610,-285.444168,0.000225,7]
[376309326,1753925451619,-285.444168,0.000225,7]
[376309327,1753925451628,-177.264006,0.000225,7]
[376309328,1753925451638,-177.264006,0.000225,7]
[376309329,1753925451647,-375.276282,0.000225,7]
[376309330,1753925451657,-375.276282,0.000225,7]
[376309331,1753925451667,-151.0,0.000225,7]
[376309332,1753925451676,-1500.0,0.000225,14]
[376309333,1753925451686,-1500.0,0.000225,14]
[376309334,1753925451695,-1500.0,0.000225,14]
[376309335,1753925451705,-1500.0,0.000225,14]
[376309336,1753925451714,-1500.0,0.000225,14]
[376309337,1753925451723,-1500.0,0.000225,14]
[376309338,1753925451737,-1036.18042,0.000225,14]
[376309339,1753925451746,-151.0,0.000225,7]
[376309340,1753925451756,-151.0,0.000225,7]
[376309341,1753925451765,-151.0,0.000225,7]
[376309342,1753925451775,-342.59219,0.000225,7]
[376309343,1753925451785,-151.0,0.000225,7]
[376309344,1753925451795,-257.980292,0.000225,7]
[376309345,1753925451805,-257.980292,0.000225,7]
[376309346,1753925451815,-574.920082,0.000225,7]
[376309347,1753925451825,-574.920082,0.000225,7]
[376309348,1753925451834,-151.0,0.000225,7]
[376309349,1753925451844,-312.56084,0.000225,7]
[376309350,1753925451854,-312.56084,0.000225,7]
[376309351,1753925451864,-1189.483359,0.000225,7]
[376309352,1753925451874,-1189.483359,0.000225,7]
[376309353,1753925451884,-151.0,0.000225,7]
[376309354,1753925451893,-486.641646,0.000225,7]
[376309355,1753925451903,-1525.955396,0.000225,2]
[376309356,1753925451912,-486.641646,0.000225,7]
[376309357,1753925451922,-874.411612,0.000225,7]
[376309358,1753925451931,-874.411612,0.000225,7]
[376309359,1753925451941,-1008.7330561,0.000225,2]
[376309360,1753925451951,-164.001729,0.00022505,2]
[376309361,1753925451960,-3000.0,0.0002251,2]
[376309362,1753925451970,-1462.23,0.00022515,2]
[376309363,1753925451980,-971.69,0.00022516,2]
[376309364,1753925451989,-360.92078694,0.00022516,2]
[376309365,1753925452000,-585.12,0.00022516,2]
[376309366,1753925452009,-460.0,0.00022516,2]
[376309367,1753925452019,-460.0,0.00022516,2]
[376309368,1753925452028,-151.0,0.00022517,7]
[376309369,1753925452037,-151.0,0.00022517,7]
[376309370,1753925452046,-357.460275,0.00022517,7]
[376309371,1753925452056,-357.460275,0.00022517,7]
[376309372,1753925452065,-2247.88,0.00022517,2]
[376309373,1753925452075,-977.17,0.00022517,2]
[376309374,1753925452085,-572.81,0.00022517,2]
[376309375,1753925452094,-927.59,0.00022518,2]
[376309376,1753925452104,-1256.33,0.00022518,2]
[376309377,1753925452113,-460.0,0.00022518,2]
[376309378,1753925452122,-2451.93,0.00022519,2]
[376309379,1753925452132,-3000.0,0.0002252,2]
[376309380,1753925452141,-176.579178,0.0002252,7]
[376309381,1753925452150,-151.0,0.0002252,7]
[376309382,1753925452160,-151.0,0.0002252,7]
[376309383,1753925452170,-151.0,0.0002252,7]
[376309384,1753925452179,-151.0,0.0002252,7]
[376309385,1753925452191,-151.0,0.0002252,7]
[376309386,1753925452200,-151.0,0.0002252,7]
[376309387,1753925452209,-675.78,0.0002252,2]
[376309388,1753925452219,-165.0563,0.0002252,7]
[376309389,1753925452229,-165.0563,0.0002252,7]
[376309390,1753925452242,-151.0,0.00022521,7]
[376309391,1753925452252,-219.084145,0.00022521,7]
[376309392,1753925452262,-219.084145,0.00022521,7]
[376309393,1753925452377,-151.0,0.00022521,7]
[376309394,1753925452387,-658.466365,0.00022521,7]
[376309395,1753925452397,-658.466365,0.00022521,7]
[376309396,1753925452407,-467.0,0.00022523,2]
[376309397,1753925452416,-3000.0,0.0002253,2]
[376309398,1753925452426,-3000.0,0.0002254,2]
[376309399,1753925452435,-151.0,0.0002254,7]
[376309400,1753925452444,-151.0,0.0002254,7]
[376309401,1753925452453,-151.0,0.0002254,7]
[376309402,1753925452462,-467.0,0.00022545,2]
[376309403,1753925452471,-3000.0,0.0002255,2]
[376309404,1753925452480,-467.0,0.00022554,2]
[376309405,1753925452490,-467.0,0.00022559,2]
[376309406,1753925452499,-467.0,0.00022559,2]
[376309407,1753925452508,-5700.0,0.0002256,2]
[376309408,1753925452517,-430.48,0.0002258,2]
[376309409,1753925452526,-467.0,0.00022582,2]
[376309410,1753925452535,-151.0,0.000226,5]
[376309411,1753925452545,-1475.99321028,0.000226,4]
[376309412,1753925452554,-151.0,0.00022623,7]
[376309413,1753925452563,-219.084145,0.00022623,7]
[376309414,1753925452573,-219.084145,0.00022623,7]
[376309415,1753925452582,-151.0,0.00022623,7]
[376309416,1753925452591,-151.0,0.00022623,7]
[376309417,1753925452601,-257.980292,0.00022623,7]
[376309418,1753925452610,-257.980292,0.00022623,7]
[376309419,1753925452619,-574.920082,0.00022623,7]
[376309420,1753925452628,-574.920082,0.00022623,7]
[376309421,1753925452638,-312.56084,0.00022623,7]
[376309422,1753925452648,-312.56084,0.00022623,7]
[376309423,1753925452658,-1189.483359,0.00022623,7]
[376309424,1753925452667,-1189.483359,0.00022623,7]
[376309425,1753925452677,-290.155106,0.00022627,7]
[376309426,1753925452686,-290.155106,0.00022627,7]
[376309427,1753925452695,-188.466427,0.00022627,7]
[376309428,1753925452704,-188.466427,0.00022627,7]
[376309429,1753925452714,-867.313498,0.00022627,7]
[376309430,1753925452723,-177.264006,0.00022627,7]
[376309431,1753925452733,-177.264006,0.00022627,7]
[376309432,1753925452742,-249.198507,0.00022627,7]
[376309433,1753925452752,-151.0,0.00022627,7]
[376309434,1753925452761,-342.59219,0.00022627,7]
[376309435,1753925452771,-151.0,0.00022627,7]
[376309436,1753925452780,-151.0,0.00022627,7]
[376309437,1753925452790,-486.641646,0.00022627,7]
[376309438,1753925452799,-486.641646,0.00022627,7]
[376309439,1753925452808,-874.411612,0.00022627,7]
[376309440,1753925452818,-874.411612,0.00022627,7]
[376309441,1753925452827,-151.0,0.00022668,7]
[376309442,1753925452836,-1138.32146,0.00022668,7]
[376309443,1753925452846,-1138.32146,0.00022668,7]